{"text_format":"1","workbook":"xlsx","n_sheets":3,"sheets":["Portada","Calificaciones","Tabla Dinámica & Segmentación"],"not_rendered":{"charts":1,"images":1,"macros":1,"external_links":0,"defined_names":9,"comments":1,"pivot_tables":1},"unopened":[],"bounds":{"document_bytes":16777216,"sheet_cells":100000,"rows_first":2000,"rows_last":500,"rows_between":2000,"halvings":0,"cell_chars":16384,"cell_head_chars":4096},"cells_cut":0,"cells_raw":0,"read":"whole","date_system":"1900"}

{"sheet":"Portada","index":0,"n_rows":18,"n_cols":3,"rows_kept":18,"cut":false,"hidden":false,"merged":[]}
[]
[]
[]
[]
[]
[]
[]
[null,"Nombre:","Roberto Herrera Alvarado"]
[]
[null,"Fecha: ","24 de junio de 2025"]
[]
[null,"Ejercicio:","Proyecto Final de Excel: Control de Calificaciones"]
[]
[]
[]
[]
[null,"\"Este proyecto tiene como objetivo registrar y calcular las calificaciones de los estudiantes, mostrando promedios, "]
[null,"máximos y mínimos mediante el uso de funciones, gráficos y automatización básica en Excel.\""]

{"sheet":"Calificaciones","index":1,"n_rows":28,"n_cols":14,"rows_kept":28,"cut":false,"hidden":false,"merged":[[2,1,2,4]]}
["En esta primera parte puedes dar de alta a un alumno nuevo, agregando su calificación correspondiente a cada parcial. Llena los datos y presiona el botón \"Agregar Alumno\"."]
[]
[null,"DAR DE ALTA A NUEVOS ALUMNOS"]
[null,"Nombre del alumno","Parcial 1","Parcial 2","Parcial 3",null,null,null,null,null,null,null,"Mejor Promedio",{"$f":"MAX(TablaCalificaciones[Promedio])","v":8}]
[null,null,null,null,null,null,null,null,null,null,null,null,"Peor promedio",{"$f":"MIN(TablaCalificaciones[Promedio])","v":4}]
[]
[]
["Nº","Nombre del alumno","Parcial 1","Parcial 2","Parcial 3","Promedio"]
[1,"Ana Rodríguez",9,5,7,{"$f":"AVERAGE(C9:E9)","v":7}]
[2,"Luis Martínez",9,5,7,7]
[3,"Carla Pérez",9,5,7,7]
[4,"Diego Hernández",9,7,7,7.666666666666667]
[5,"Laura Jiménez",9,5,7,7]
[6,"Jorge Ramírez",9,5,7,7]
[7,"Alejandra Salas",9,5,7,7]
[8,"Mario López",9,5,7,7]
[9,"Lucía Torres",9,5,10,8]
[10,"Carlos Vela",5,5,7,5.666666666666667]
[11,"Denisse",9,5,7,7]
[12,"Andrea",9,5,7,7]
[13,"Alexa",9,5,7,7]
[14,"Evelin",9,5,7,7]
[15,"Max",9,5,7,7]
[16,"Liliana",2,3,7,4]
[17,"Miriam",9,5,7,7]
[18,"Harvey",9,5,7,7]
[19,"Lola",9,5,7,7]
[20,"Marcela",9,5,7,{"$f":"AVERAGE(C28:E28)","v":7}]

{"sheet":"Tabla Dinámica & Segmentación","index":2,"n_rows":28,"n_cols":6,"rows_kept":28,"cut":false,"hidden":false,"merged":[[25,1,25,2]]}
[]
["Etiquetas de fila","Suma de Nº","Suma de Parcial 1","Suma de Parcial 2","Suma de Parcial 3","Suma de Promedio"]
["Alejandra Salas",7,5,5,6,5.333333333333333]
["Alexa",13,10,10,9,9.6666666666666661]
["Ana Rodríguez",1,6,7,7,6.666666666666667]
["Andrea",12,3,5,3,3.6666666666666665]
["Carla Pérez",3,6,7,7,6.666666666666667]
["Carlos Vela",10,6,7,7,6.666666666666667]
["Denisse",11,10,10,9,9.6666666666666661]
["Diego Hernández",4,6,9,9,8]
["Evelin",14,6,7,9,7.333333333333333]
["Harvey",18,8,9,8,8.3333333333333339]
["Jorge Ramírez",6,6,7,7,6.666666666666667]
["Laura Jiménez",5,6,7,7,6.666666666666667]
["Liliana",16,9,8,7,8]
["Lola",19,9,9,9,9]
["Lucía Torres",9,4,4,4,4]
["Luis Martínez",2,9,9,9,9]
["Marcela",20,8,9,10,9]
["Mario López",8,6,7,7,6.666666666666667]
["Max",15,6,6,7,6.333333333333333]
["Miriam",17,8,9,10,9]
["Total general",210,137,151,151,146.33333333333334]
[]
[]
[null,"INSTRUCCIONES:"]
[null,"Selecciona un nombre o bien la calificacion del parcial que desees "]
[null,"consultar y la tabla mostrará los registros que correspondan a tu consulta."]